bitfinex-derivatives/quotes_SOLF0:USTF0_20250928
["timestamp","ask_amount","ask_price","bid_price","bid_amount"]
[1759088409562,7.46,206.34,206.28,4.3614]
[1759088418469,7.46,206.34,206.29,4.3611]
[1759088419763,1.68352425,206.33,206.26,7.69]
[1759088420066,1.68352425,206.31,206.22,22.26573522]
[1759088420269,7.42,206.3,206.22,7.66]
[1759088421374,7.42,206.28,206.19,7.66]
[1759088422270,7.42,206.28,206.23,4.3623]
[1759088422472,1.68352425,206.29,206.23,4.3623]
[1759088423474,1.68352425,206.29,206.24,4.3622]
[1759088423675,7.64,206.28,206.24,4.3622]
[1759088423978,1.68352425,206.29,206.24,4.3622]
[1759088426472,7.64,206.28,206.24,4.3622]
[1759088426677,1.68352425,206.29,206.24,4.3622]
[1759088427478,7.64,206.28,206.24,4.3622]
[1759088427674,1.68352425,206.29,206.24,4.3622]
[1759088427880,1.68352425,206.27,206.22,4.3626]
[1759088428078,7.64,206.26,206.22,4.3626]
[1759088428281,7.64,206.26,206.24,7.64]
[1759088428873,7.64,206.26,206.2,7.64]
[1759088429078,7.64,206.22,206.15,7.64]
[1759088430282,7.64,206.2,206.15,7.64]
[1759088430587,7.64,206.2,206.12,7.64]
[1759088431176,67.8525,206.26,206.1,7.64]
[1759088431177,7.64,206.17,206.1,7.64]
[1759088431876,7.64,206.17,206.11,4.3649]
[1759088432077,7.64,206.17,206.1,7.64]
[1759088432277,7.64,206.17,206.11,7.64]
[1759088432881,7.64,206.17,206.13,12.0046]
[1759088433672,1.68352425,206.18,206.13,12.0046]
[1759088433872,7.64,206.17,206.13,12.0046]
[1759088434376,4.3629,206.21,206.13,12.0046]
[1759088434377,7.64,206.19,206.13,12.0046]
[1759088436380,1.68352425,206.18,206.13,4.3646]
[1759088436580,7.64,206.17,206.13,4.3646]
[1759088437078,7.64,206.17,206.13,12.0046]
[1759088438182,1.68352425,206.18,206.13,4.3646]
[1759088438380,7.64,206.17,206.13,4.3646]
[1759088438578,1.68352425,206.18,206.13,4.3646]
[1759088438774,7.64,206.17,206.13,4.3646]
[1759088439178,7.64,206.17,206.13,12.0046]
[1759088439378,1.68352425,206.18,206.13,12.0046]
[1759088439884,7.64,206.17,206.1,4.3651]
[1759088440082,1.68352425,206.16,206.1,4.3651]
[1759088440277,7.64,206.15,206.1,4.3651]
[1759088440887,1.68352425,206.16,206.1,4.3651]
[1759088441284,7.64,206.15,206.1,4.3651]
[1759088441481,1.68352425,206.13,206.08,4.3657]
[1759088441784,7.64,206.12,206.08,4.3657]
[1759088441979,1.68352425,206.13,206.08,4.3657]
[1759088442175,7.64,206.12,206.08,4.3657]
[1759088442383,7.64,206.12,206.06,4.3661]
[1759088443288,7.64,206.09,206.06,4.3661]
[1759088443685,1.68352425,206.1,206.06,4.3661]
[1759088444287,7.64,206.09,206.06,4.3661]
[1759088444480,7.64,206.09,206.01,67.9345]
[1759088444481,7.64,206.09,206.03,4.3666]
[1759088445481,7.64,206.09,205.98,1.68352425]
[1759088445883,7.64,206.09,205.99,7.64]
[1759088446591,7.64,206.09,206.01,4.367]
[1759088448092,7.64,206.09,206.02,7.64]
[1759088449387,7.64,206.09,206.06,12.0061]
[1759088449694,9.32352425,206.12,206.06,4.3661]
[1759088451889,9.32352425,206.12,206.07,4.3657]
[1759088452095,9.32352425,206.12,206.08,7.64]
[1759088452392,7.64,206.12,206.08,7.64]
[1759088452987,7.64,206.12,206.09,7.64]
[1759088455198,7.64,206.12,206.09,12.0053]
[1759088455400,9.70352425,206.16,206.09,8.01]
[1759088455598,8.02,206.16,206.09,9.69352425]
[1759088456597,8.02,206.16,206.11,4.365]
[1759088456794,8.02,206.16,206.12,8.01]
[1759088457401,8.02,206.18,206.12,8.01]
[1759088460499,8.02,206.18,206.12,12.3747]
[1759088460701,8.02,206.18,206.12,8.01]
[1759088461699,8.02,206.18,206.14,8.01]
[1759088461901,8.02,206.22,206.14,1.68352425]
[1759088462098,8.02,206.22,206.15,8.01]
[1759088463401,8.02,206.22,206.14,1.68352425]
[1759088463602,8.02,206.2,206.14,1.68352425]
[1759088465901,8.02,206.2,206.15,8.01]
[1759088466097,8.02,206.2,206.14,1.68352425]
[1759088466303,8.02,206.2,206.14,9.69352425]
[1759088466707,8.02,206.22,206.15,4.364]
[1759088467703,3.37927214,206.21,206.15,4.364]
[1759088467906,8.02,206.22,206.15,4.364]
[1759088468106,3.37927214,206.21,206.15,4.364]
[1759088468412,8.02,206.22,206.15,4.364]
[1759088468603,3.380646,206.21,206.15,4.364]
[1759088468800,8.02,206.22,206.15,4.364]
[1759088470308,3.38225004,206.21,206.15,4.364]
[1759088470505,8.02,206.22,206.15,4.364]
[1759088470706,3.38345714,206.21,206.15,4.364]
[1759088470908,8.02,206.22,206.15,4.364]
[1759088471114,3.38338444,206.21,206.15,4.364]
[1759088471303,8.02,206.22,206.15,4.364]
[1759088471507,3.38517711,206.21,206.15,4.364]
[1759088471709,8.02,206.22,206.15,4.364]
[1759088471908,3.38510438,206.21,206.15,4.364]
[1759088472111,8.02,206.22,206.15,4.364]
[1759088472312,3.38531312,206.21,206.15,4.364]
[1759088472613,8.02,206.22,206.15,4.364]
[1759088472812,3.38693604,206.21,206.15,4.364]
[1759088473010,8.02,206.22,206.15,4.364]
[1759088473203,3.38699827,206.21,206.16,7.37]
[1759088473406,8.02,206.22,206.16,7.37]
[1759088473614,3.38871841,206.21,206.15,11.734]
[1759088473815,7.84,206.22,206.15,11.734]
[1759088474009,3.38871927,206.21,206.15,11.734]
[1759088474206,7.84,206.22,206.15,11.734]
[1759088474410,3.38867998,206.21,206.15,11.734]
[1759088474611,7.84,206.22,206.15,11.734]
[1759088474911,3.3898315,206.21,206.15,11.734]
[1759088475111,7.84,206.22,206.15,11.734]
[1759088475315,3.38974751,206.21,206.15,11.734]
[1759088475512,7.84,206.22,206.15,11.734]
[1759088475712,3.39049412,206.21,206.15,11.734]
[1759088475915,7.84,206.22,206.15,11.734]
[1759088476216,3.39049412,206.21,206.15,11.734]
[1759088476516,7.84,206.22,206.15,11.734]
[1759088476715,3.39035545,206.21,206.15,11.734]
[1759088477011,7.84,206.22,206.15,11.734]
[1759088477217,3.39028373,206.21,206.15,11.734]
[1759088477414,7.84,206.22,206.15,11.734]
[1759088477614,3.39011749,206.21,206.15,11.734]
[1759088477814,7.84,206.22,206.15,11.734]
[1759088478014,3.39011749,206.21,206.15,11.734]
[1759088478215,7.84,206.22,206.15,11.734]
[1759088478416,3.39005991,206.21,206.15,11.734]
[1759088478617,7.84,206.22,206.15,11.734]
[1759088478817,3.38988547,206.21,206.15,11.734]
[1759088479023,7.84,206.22,206.15,11.734]
[1759088479319,3.38984017,206.21,206.15,11.734]
[1759088479617,7.84,206.22,206.15,11.734]
[1759088479919,3.38966064,206.21,206.15,11.734]
[1759088480114,7.84,206.22,206.15,11.734]
[1759088480313,3.38962781,206.21,206.15,11.734]
[1759088480514,7.84,206.22,206.15,11.734]
[1759088491429,3.39044234,206.21,206.15,11.734]
[1759088491728,7.84,206.22,206.15,11.734]
[1759088492027,3.39044234,206.21,206.15,11.734]
[1759088492229,7.84,206.22,206.15,11.734]
[1759088492425,3.39193435,206.21,206.16,4.3639]
[1759088492724,7.84,206.22,206.16,4.3639]
[1759088492924,7.82,206.2,206.17,7.82]
[1759088497322,3.39672699,206.19,206.16,12.1839]
[1759088497526,4.78486331,206.23,206.13,12.1844]
[1759088497527,3.3970512,206.18,206.13,12.1844]
[1759088497728,0.42236331,206.23,206.13,12.1844]
[1759088497923,3.39705378,206.22,206.13,12.1844]
[1759088498122,7.82,206.2,206.13,12.1844]
[1759088498321,3.39705378,206.19,206.13,4.3644]
[1759088498523,7.82,206.17,206.14,7.82]
[1759088499431,4.3633,206.2,206.14,4.3643]
[1759088499729,11.2193302,206.19,206.15,7.82]
[1759088499931,3.3993302,206.18,206.15,7.82]
[1759088500125,3.3993302,206.17,206.14,4.3643]
[1759088500333,7.82,206.19,206.14,4.3643]
[1759088500532,3.40082853,206.18,206.14,4.3643]
[1759088500733,3.40082853,206.17,206.15,7.82]
[1759088500928,7.82,206.19,206.14,4.3643]
[1759088501134,3.40082853,206.18,206.14,4.3643]
[1759088501334,3.40082853,206.17,206.15,7.82]
[1759088501532,7.82,206.18,206.15,7.82]
[1759088501732,11.22144707,206.17,206.15,7.82]
[1759088501934,7.82,206.17,206.15,7.82]
[1759088503336,3.40327488,206.16,206.15,7.82]
[1759088504635,3.40450616,206.16,206.15,7.82]
[1759088505146,3.40450616,206.16,206.0,67.9344]
[1759088505147,7.82,206.15,206.06,7.82]
[1759088505335,3.40468831,206.14,206.06,7.82]
[1759088505535,3.40468831,206.13,206.06,7.82]
[1759088505840,3.40468831,206.12,206.06,7.82]
[1759088506037,12.1842,206.15,206.07,4.3656]
[1759088506339,3.4041551,206.14,206.08,7.82]
[1759088506542,3.4041551,206.13,206.08,7.82]
[1759088506843,11.2241551,206.12,206.08,7.82]
[1759088507038,3.4041551,206.11,206.08,7.82]
[1759088507230,12.1842,206.15,206.08,7.82]
[1759088507435,3.40274188,206.14,206.08,7.82]
[1759088507637,3.40274188,206.13,206.07,4.3656]
[1759088507836,3.40274188,206.12,206.08,7.82]
[1759088508038,12.1842,206.15,206.08,7.82]
[1759088508348,3.40156833,206.14,206.08,7.82]
[1759088508538,3.40156833,206.13,206.08,7.82]
[1759088508735,3.40156833,206.12,206.07,4.3656]
[1759088508945,12.1842,206.15,206.08,7.82]
[1759088509244,3.40156833,206.14,206.08,7.82]
[1759088509445,3.40156833,206.13,206.08,7.82]
[1759088509649,3.40156833,206.12,206.08,7.82]
[1759088509842,12.1842,206.15,206.08,7.82]
[1759088510041,3.40059114,206.14,206.08,7.82]
[1759088510244,3.40059114,206.13,206.08,7.82]
[1759088510450,7.82,206.14,206.08,7.82]
[1759088510742,3.39972039,206.13,206.09,4.3653]
[1759088510946,7.82,206.16,206.1,7.82]
[1759088511248,11.21954204,206.15,206.1,7.82]
[1759088511443,11.21954204,206.14,206.09,4.3653]
[1759088511741,7.82,206.14,206.1,7.82]
[1759088511949,7.82,206.14,206.09,4.3653]
[1759088512149,7.82,206.14,206.1,7.82]
[1759088512554,7.82,206.14,206.09,4.3653]
[1759088513153,3.39853185,206.13,206.09,4.3653]
[1759088513350,7.82,206.14,206.1,7.82]
[1759088513544,3.39799414,206.13,206.09,4.3653]
[1759088513743,7.82,206.14,206.09,4.3653]
[1759088513944,3.39799414,206.13,206.09,4.3653]
[1759088514143,7.84,206.15,206.09,4.3653]
[1759088514348,11.23751933,206.14,206.1,7.57]
[1759088514553,7.84,206.14,206.1,7.57]
[1759088514850,4.364,206.16,206.1,7.57]
[1759088515055,7.84,206.14,206.09,4.3653]
[1759088515250,7.84,206.14,206.1,7.57]
[1759088515552,7.84,206.15,206.1,7.57]
[1759088515755,7.84,206.13,206.1,7.57]
[1759088515955,7.84,206.13,206.09,4.3653]
[1759088516356,7.84,206.13,206.1,7.57]
[1759088516551,7.84,206.13,206.09,4.3653]
[1759088517153,7.84,206.13,206.1,7.57]
[1759088523859,7.84,206.13,206.06,67.9152]
[1759088524059,7.84,206.13,206.07,7.57]
[1759088524261,7.84,206.13,206.09,4.3653]
[1759088524559,7.84,206.13,206.1,7.57]
[1759088527051,7.84,206.13,206.1,4.3649]
[1759088527252,7.84,206.17,206.11,7.57]
[1759088528254,7.84,206.17,206.12,1.68610941]
[1759088528455,7.84,206.22,206.13,7.57]
[1759088528656,7.84,206.19,206.08,1.68610941]
[1759088528864,7.84,206.17,206.09,7.57]
[1759088529164,7.84,206.15,206.09,7.57]
[1759088529366,7.84,206.13,206.06,7.57]
[1759088529560,3.40161437,206.14,206.02,9.25610941]
[1759088529561,7.84,206.11,206.02,9.25610941]
[1759088529766,9.52610941,206.11,206.02,9.25610941]
[1759088530064,7.84,206.09,206.02,9.25610941]
[1759088530266,7.84,206.09,206.02,7.57]
[1759088531664,7.84,206.09,206.02,11.9366]
[1759088535872,7.84,206.09,206.03,7.25]
[1759088539278,7.83,206.13,206.03,8.93610941]
[1759088539876,7.83,206.13,206.05,7.25]
[1759088540177,7.83,206.11,206.05,7.25]
[1759088541177,7.83,206.11,206.05,11.616]
[1759088544578,7.83,206.11,206.06,4.3659]
[1759088544871,7.61,206.13,206.06,11.8359]
[1759088545179,3.40241667,206.12,206.07,7.47]
[1759088545371,7.61,206.13,206.07,7.47]
[1759088545571,7.61,206.11,206.07,7.47]
[1759088545867,7.61,206.13,206.06,11.8359]
[1759088546073,3.40291009,206.12,206.06,11.8359]
[1759088546278,7.61,206.13,206.06,11.8359]
[1759088546477,11.01334269,206.12,206.09,7.47]
[1759088546778,7.61,206.15,206.09,7.47]
[1759088547076,11.01304606,206.14,206.07,7.47]
[1759088547277,7.61,206.14,206.09,4.3651]
[1759088547478,7.61,206.14,206.09,6.05120941]
[1759088547676,7.61,206.14,206.1,7.47]
[1759088547875,7.61,206.14,206.09,6.05120941]
[1759088548077,7.61,206.14,206.1,7.47]
[1759088548277,7.61,206.14,206.09,6.05120941]
[1759088548574,7.61,206.14,206.1,7.47]
[1759088548778,7.61,206.14,206.11,7.47]
[1759088549978,7.61,206.2,206.13,7.47]
[1759088550177,3.40431857,206.19,206.13,7.47]
[1759088550376,3.40431857,206.18,206.16,7.47]
[1759088550576,3.40431857,206.17,206.16,7.47]
[1759088551280,7.61,206.2,206.16,7.47]
[1759088551583,3.40344222,206.19,206.16,7.47]
[1759088551882,3.40344222,206.18,206.16,7.47]
[1759088552080,7.61,206.2,206.16,7.47]
[1759088552280,11.01295354,206.19,206.16,7.47]
[1759088552480,7.61,206.19,206.16,7.47]
[1759088554378,7.61,206.21,206.13,6.05060941]
[1759088554684,7.61,206.19,206.13,1.68610941]
[1759088554885,3.4005133,206.18,206.13,1.68610941]
[1759088555084,7.61,206.2,206.13,9.15610941]
[1759088555277,7.61,206.18,206.13,9.15610941]
[1759088555582,11.9732,206.2,206.13,9.15610941]
[1759088555781,7.61,206.18,206.13,9.15610941]
[1759088555984,7.61,206.19,206.13,9.15610941]
[1759088556182,4.3632,206.2,206.13,9.15610941]
[1759088556183,3.40031162,206.18,206.13,9.15610941]
[1759088556480,11.01031162,206.17,206.1,9.15610941]
[1759088556672,7.61,206.17,206.1,9.15610941]
[1759088560487,7.61,206.17,206.1,13.52110941]
[1759088566582,7.61,206.16,206.1,11.835]
[1759088569494,7.61,206.16,206.11,4.3648]
[1759088569698,6.04940941,206.19,206.11,11.8348]
[1759088569997,7.61,206.17,206.11,11.8348]
[1759088573193,7.61,206.17,206.11,7.47]
[1759088574694,7.61,206.17,206.14,7.65]
[1759088575298,7.93,206.18,206.14,7.65]
[1759088575595,7.93,206.16,206.14,7.65]
[1759088576496,7.93,206.18,206.11,4.3649]
[1759088576687,3.39580998,206.17,206.11,4.3649]
[1759088576888,7.93,206.18,206.11,4.3649]
[1759088577089,3.3958117,206.17,206.11,4.3649]
[1759088577285,4.3633,206.19,206.11,4.3649]
[1759088577491,11.32617789,206.18,206.11,4.3649]
[1759088577700,3.39617789,206.17,206.11,4.3649]
[1759088578000,4.3633,206.19,206.11,12.0149]
[1759088578194,7.93,206.17,206.11,12.0149]
[1759088579693,1.68610941,206.18,206.11,12.0149]
[1759088579894,7.93,206.14,206.08,7.65]
[1759088580098,1.68610941,206.15,206.08,7.65]
[1759088580099,7.93,206.12,206.08,7.65]
[1759088580398,7.93,206.14,206.08,7.65]
[1759088580693,3.39842136,206.13,206.08,7.65]
[1759088580901,1.68610941,206.15,206.04,71.68712288]
[1759088581089,7.93,206.13,206.04,71.68712288]
[1759088581399,7.93,206.11,206.04,76.05332288]
[1759088582694,7.93,206.11,206.05,4.3661]
[1759088582997,7.93,206.11,206.06,7.65]
[1759088583189,6.05100941,206.12,206.05,4.3661]
[1759088583397,7.93,206.11,206.06,7.65]
[1759088583600,13.98100941,206.12,206.06,7.65]
[1759088585894,3.40038423,206.11,206.06,7.65]
[1759088586100,6.05100941,206.12,206.05,4.3661]
[1759088586300,11.33016216,206.11,206.06,7.65]
[1759088586500,7.93,206.11,206.06,7.65]
[1759088586698,6.05100941,206.12,206.05,4.3661]
[1759088586903,3.40034598,206.11,206.05,4.3661]
[1759088587099,6.05100941,206.12,206.05,4.3661]
[1759088587300,11.33009474,206.11,206.06,7.65]
[1759088587605,7.93,206.11,206.06,7.65]
[1759088587896,6.05100941,206.12,206.06,7.65]
[1759088588103,11.32952668,206.11,206.06,7.65]
[1759088588300,6.05100941,206.12,206.05,4.3661]
[1759088588497,11.32942572,206.11,206.06,7.65]
[1759088588701,7.93,206.11,206.06,7.65]
[1759088588902,7.93,206.12,206.06,7.65]
[1759088589199,11.32785241,206.11,206.06,7.65]
[1759088589406,7.93,206.12,206.06,7.65]
[1759088589605,3.3977557,206.11,206.05,4.3661]
[1759088589806,7.93,206.12,206.06,7.65]
[1759088590007,3.39736701,206.11,206.05,4.3661]
[1759088590306,7.93,206.12,206.06,7.65]
[1759088596213,7.93,206.12,206.06,4.3659]
[1759088596416,7.6,206.13,206.07,8.03]
[1759088596611,7.6,206.11,206.07,8.03]
[1759088596801,7.6,206.11,206.06,4.3659]
[1759088597404,7.6,206.11,206.07,8.03]
[1759088597806,7.6,206.11,206.06,4.3659]
[1759088598011,7.6,206.13,206.07,8.03]
[1759088598209,10.99720669,206.12,206.07,8.03]
[1759088598412,7.6,206.13,206.07,8.03]
[1759088598610,3.39693678,206.12,206.07,8.03]
[1759088598821,7.6,206.13,206.07,8.03]
[1759088599013,10.99693678,206.12,206.06,4.3659]
[1759088599214,7.6,206.13,206.07,8.03]
[1759088599517,3.39670185,206.12,206.06,4.3659]
[1759088599715,7.6,206.13,206.07,8.03]
[1759088599918,3.39663883,206.12,206.06,4.3659]
[1759088600108,7.6,206.13,206.07,8.03]
[1759088600310,3.39658486,206.12,206.06,4.3659]
[1759088600508,7.6,206.13,206.06,12.3959]
[1759088600817,3.39658369,206.12,206.06,4.3659]
[1759088601016,7.6,206.13,206.07,8.03]
[1759088601211,3.39654936,206.12,206.06,4.3659]
[1759088601517,7.6,206.13,206.07,8.03]
[1759088601718,3.39617248,206.12,206.07,8.03]
[1759088601920,7.6,206.13,206.07,8.03]
[1759088602116,10.99617248,206.12,206.06,12.3959]
[1759088602317,7.6,206.12,206.06,12.3959]
[1759088606416,7.4,206.1,206.06,12.3959]
[1759088606617,4.3647,206.13,206.06,4.3659]
[1759088606822,7.4,206.11,206.04,68.40352288]
[1759088607024,7.4,206.12,206.04,68.40352288]
[1759088607317,3.39617375,206.11,206.05,7.25]
[1759088607522,7.4,206.12,206.05,11.6161]
[1759088607821,3.39611439,206.11,206.05,11.6161]
[1759088608024,7.4,206.12,206.05,11.6161]
[1759088608222,3.39611439,206.11,206.05,11.6161]
[1759088608522,7.4,206.12,206.05,11.6161]
[1759088608722,3.39621424,206.11,206.05,11.6161]
[1759088608925,7.4,206.12,206.05,11.6161]
[1759088609124,3.39621424,206.11,206.05,11.6161]
[1759088609422,7.4,206.12,206.05,11.6161]
[1759088609626,3.39832422,206.11,206.05,11.6161]
[1759088609820,7.4,206.12,206.05,11.6161]
[1759088610021,3.39832474,206.11,206.05,11.6161]
[1759088610322,7.4,206.12,206.05,11.6161]
[1759088610520,3.3984495,206.11,206.05,11.6161]
[1759088610720,7.4,206.12,206.05,11.6161]
[1759088610920,3.39845054,206.11,206.05,11.6161]
[1759088611121,7.4,206.12,206.05,11.6161]
[1759088611323,3.39843356,206.11,206.05,11.6161]
[1759088611526,7.4,206.12,206.05,11.6161]
[1759088611726,3.39847677,206.11,206.05,11.6161]
[1759088612025,7.4,206.12,206.05,11.6161]
[1759088612328,10.79847677,206.11,206.06,4.3659]
[1759088612526,4.3647,206.13,206.06,4.3659]
[1759088612722,7.4,206.11,206.06,4.3659]
[1759088612922,4.3647,206.13,206.06,4.3659]
[1759088613124,3.39922129,206.12,206.06,4.3659]
[1759088613325,10.79922129,206.11,206.02,7.25]
[1759088613525,7.4,206.09,206.02,7.25]
[1759088613721,7.4,206.07,206.02,7.25]
[1759088613922,7.4,206.09,206.02,7.25]
[1759088614225,7.4,206.07,206.02,7.25]
[1759088614425,7.4,206.07,206.03,7.25]
[1759088614626,7.4,206.07,206.02,4.3667]
[1759088615028,7.4,206.07,206.03,7.25]
[1759088615221,4.3657,206.08,206.03,7.25]
[1759088615927,3.39825426,206.07,206.03,7.25]
[1759088616127,4.3657,206.08,206.03,7.25]
[1759088616328,7.4,206.07,206.03,7.25]
[1759088616723,7.4,206.07,206.0,11.6172]
[1759088617826,7.4,206.07,206.01,4.3669]
[1759088618027,7.4,206.07,206.02,7.25]
[1759088618226,4.3657,206.08,206.01,4.3669]
[1759088618530,10.79730117,206.07,206.02,7.25]
[1759088618726,7.4,206.06,206.01,4.3669]
[1759088618931,7.4,206.06,206.02,7.25]
[1759088619133,7.4,206.06,206.01,4.3669]
[1759088619631,7.4,206.06,205.99,11.6174]
[1759088621632,7.4,206.06,206.0,4.3672]
[1759088623628,7.7642192,206.05,205.99,7.25]
[1759088623833,7.4,206.04,205.99,7.25]
[1759088624332,4.3662,206.05,205.99,7.25]
[1759088624527,7.4,206.04,205.99,7.25]
[1759088624836,7.4,206.04,205.96,11.618]
[1759088625035,7.4,206.04,205.97,7.25]
[1759088626233,7.4,206.09,205.97,7.25]
[1759088626437,3.39669228,206.08,205.97,7.25]
[1759088626629,3.39669228,206.07,205.97,7.25]
[1759088626828,7.4,206.09,205.97,7.25]
[1759088627133,3.39653839,206.08,205.97,7.25]
[1759088627328,3.39653839,206.07,205.97,7.25]
[1759088627528,7.4,206.09,205.97,7.25]
[1759088627725,3.39638513,206.08,206.02,7.25]
[1759088627923,7.4,206.12,206.02,7.25]
[1759088628126,3.39667653,206.11,206.02,7.25]
[1759088628332,3.39667653,206.1,206.06,7.25]
[1759088628632,10.79667653,206.09,206.06,7.25]
[1759088628833,7.4,206.09,206.06,7.25]
[1759088633531,7.4,206.11,206.05,4.3661]
[1759088633731,7.39,206.09,206.05,4.3661]
[1759088633931,7.39,206.11,206.05,4.3661]
[1759088634130,7.39,206.09,206.05,11.6461]
[1759088634331,4.3648,206.12,206.05,11.6461]
[1759088634631,10.78709886,206.11,206.05,11.6461]
[1759088634936,7.39,206.09,206.05,11.6461]
[1759088635333,7.39,206.09,206.06,7.28]
[1759088640041,7.39,206.11,206.06,7.28]
[1759088640238,7.39,206.09,206.06,7.28]
[1759088640439,7.39,206.11,206.06,7.28]
[1759088640638,7.39,206.09,206.06,7.28]
[1759088641431,7.39,206.11,206.06,7.28]
[1759088641628,7.39,206.09,206.06,7.28]
[1759088641836,4.3648,206.12,206.06,7.28]
[1759088642038,7.39,206.1,206.06,7.28]
[1759088642238,4.3648,206.12,206.06,7.28]
[1759088642440,7.39,206.1,206.06,7.28]
[1759088642637,4.3648,206.12,206.06,7.28]
[1759088642836,7.39,206.1,206.06,7.28]
[1759088643133,4.3648,206.12,206.06,7.28]
[1759088643339,7.39,206.1,206.06,7.28]
[1759088643541,4.3648,206.12,206.06,7.28]
[1759088643730,3.39794123,206.11,206.06,7.28]
[1759088643930,7.39,206.09,206.06,7.28]
[1759088644441,7.39,206.11,206.06,7.28]
[1759088644642,7.39,206.09,206.06,7.28]
[1759088644936,3.39809712,206.1,206.06,7.28]
[1759088644937,4.3648,206.12,206.06,7.28]
[1759088645138,3.39809595,206.11,206.06,7.28]
[1759088645345,7.39,206.09,206.06,7.28]
[1759088645739,7.39,206.1,206.06,7.28]
[1759088645944,10.78920031,206.09,206.06,7.28]
[1759088646144,7.39,206.09,206.06,7.28]
[1759088646346,4.365,206.11,206.06,7.28]
[1759088646545,7.39,206.09,206.06,7.28]
[1759088650744,4.365,206.11,206.06,7.28]
[1759088650944,7.39,206.09,206.06,7.28]
[1759088651141,7.52,206.1,206.06,7.28]
[1759088651345,10.92362084,206.09,206.06,7.28]
[1759088651546,7.52,206.09,206.06,7.28]
[1759088651745,7.52,206.1,206.06,7.28]
[1759088651949,10.92362084,206.09,206.06,7.28]
[1759088652144,7.52,206.09,206.06,7.28]
[1759088652348,3.40376023,206.08,206.06,7.28]
[1759088652646,7.52,206.09,206.06,7.28]
[1759088652848,3.40406798,206.08,206.06,7.28]
[1759088653047,7.52,206.09,206.06,7.28]
[1759088653247,3.40406902,206.08,206.06,7.28]
[1759088653446,7.52,206.09,206.06,7.28]
[1759088653647,3.40421556,206.08,206.06,7.28]
[1759088653945,7.52,206.09,206.06,7.28]
[1759088654147,3.40421556,206.08,206.06,7.28]
[1759088654353,7.52,206.09,206.06,7.28]
[1759088654651,3.40436962,206.08,206.06,7.28]
[1759088654850,7.52,206.09,206.06,7.28]
[1759088655048,3.40436962,206.08,206.06,7.28]
[1759088655247,7.52,206.09,206.06,7.28]
[1759088655450,3.40453163,206.08,206.06,7.28]
[1759088655649,7.52,206.09,206.06,7.28]
[1759088655849,3.40453163,206.08,206.06,7.28]
[1759088656154,7.52,206.09,206.06,7.28]
[1759088656354,3.40626495,206.08,206.06,7.28]
[1759088656554,7.52,206.09,206.06,7.28]
[1759088656852,7.52,206.09,206.05,4.3661]
[1759088656853,3.40626651,206.08,206.05,4.3661]